fUST/lending_fUST_20250716
["ID","MTS","AMOUNT","RATE_DAILY","PERIOD"]
[372480035,1752659455466,-2534.47,0.00021369,2]
[372480036,1752659455475,-594.92,0.00021369,2]
[372480037,1752659455485,-1039.53,0.00021369,2]
[372480038,1752659455494,-460.0,0.00021369,2]
[372480039,1752659455503,-2969.86,0.00021369,2]
[372480040,1752659455513,-460.0,0.00021369,2]
[372480041,1752659455523,-460.0,0.00021369,2]
[372480042,1752659455532,-1003.9999861,0.00021416,2]
[372480043,1752659455542,-293.70857859,0.00021416,2]
[372480044,1752659455551,-1190.55742259,0.00021555,5]
[372480045,1752659455561,-461.0172994,0.00021643,2]
[372480046,1752659455570,-460.0,0.00021643,2]
[372480047,1752659455579,-544.59,0.00021643,2]
[372480048,1752659455591,-460.0,0.00021643,2]
[372480049,1752659455601,-460.0,0.00021643,2]
[372480050,1752659455610,-460.0,0.00021643,2]
[372480051,1752659455621,-460.0,0.00021643,2]
[372480052,1752659455630,-460.0,0.00021643,2]
[372480053,1752659455698,-518.16,0.00021643,2]
[372480054,1752659455709,-460.0,0.00021643,2]
[372480055,1752659455719,-460.0,0.00021643,2]
[372480056,1752659455728,-460.0,0.00021643,2]
[372480057,1752659455738,-460.0,0.00021643,2]
[372480058,1752659455747,-581.31,0.00021643,2]
[372480059,1752659455756,-460.0,0.00021643,2]
[372480060,1752659455766,-560.38,0.00021643,2]
[372480061,1752659455776,-460.0,0.00021643,2]
[372480062,1752659455786,-460.0,0.00021643,2]
[372480063,1752659455795,-598.99,0.00021643,2]
[372480064,1752659455804,-978.82,0.00021643,2]
[372480065,1752659455814,-598.13432355,0.00021643,2]
[372480066,1752659455823,-460.0,0.00021643,2]
[372480067,1752659455832,-4969.25,0.00021643,2]
[372480068,1752659455842,-979.98,0.00021643,2]
[372480069,1752659455852,-460.0,0.00021643,2]
[372480070,1752659455862,-460.0,0.00021643,2]
[372480071,1752659455871,-460.0,0.00021643,2]
[372480072,1752659455881,-460.0,0.00021643,2]
[372480073,1752659455891,-313.88966242,0.00021643,2]
[372480074,1752659455901,-460.0,0.00021643,2]
[372480075,1752659455910,-717.91,0.00021643,2]
[372480076,1752659455920,-585.65,0.00021643,2]
[372480077,1752659455929,-460.0,0.00021643,2]
[372480078,1752659455939,-151.99573,0.00021643,2]
[372480079,1752659455949,-2271.52,0.00021643,2]
[372480080,1752659455959,-460.0,0.00021643,2]
[372480081,1752659455969,-460.0,0.00021643,2]
[372480082,1752659455978,-460.0,0.00021643,2]
[372480083,1752659455988,-1800.67,0.00021643,2]
[372480084,1752659455997,-460.0,0.00021643,2]
[372480085,1752659456007,-572.72,0.00021643,2]
[372480086,1752659456018,-1504.03,0.00021643,2]
[372480087,1752659456031,-460.0,0.00021643,2]
[372480088,1752659456041,-540.52492912,0.00021643,2]
[372480089,1752659456051,-644.49,0.00021643,2]
[372480090,1752659456066,-460.0,0.00021643,2]
[372480091,1752659456086,-584.06,0.00021643,2]
[372480092,1752659456104,-2254.45,0.00021643,2]
[372480093,1752659456113,-151.0,0.00021643,2]
[372480094,1752659456124,-730.93,0.00021643,2]
[372480095,1752659456134,-460.0,0.00021643,2]
[372480096,1752659456144,-460.0,0.00021643,2]
[372480097,1752659456155,-221.06858017,0.00021643,2]
[372480098,1752659456164,-460.0,0.00021643,2]
[372480099,1752659456176,-1614.71,0.00021643,2]
[372480100,1752659456186,-883.98,0.00021643,2]
[372480101,1752659456198,-460.0,0.00021643,2]
[372480102,1752659456210,-460.0,0.00021643,2]
[372480103,1752659456220,-460.0,0.00021643,2]
[372480104,1752659456231,-3587.49,0.00021643,2]
[372480105,1752659456241,-1846.33,0.00021643,2]
[372480106,1752659456251,-460.0,0.00021643,2]
[372480107,1752659456261,-460.0,0.00021643,2]
[372480108,1752659456270,-460.0,0.00021643,2]
[372480109,1752659456280,-460.0,0.00021643,2]
[372480110,1752659456291,-460.0,0.00021643,2]
[372480111,1752659456302,-603.1,0.00021643,2]
[372480112,1752659456312,-2534.47,0.00021643,2]
[372480113,1752659456322,-594.92,0.00021643,2]
[372480114,1752659456332,-1039.53,0.00021643,2]
[372480115,1752659456341,-460.0,0.00021643,2]
[372480116,1752659456350,-2969.86,0.00021643,2]
[372480117,1752659456359,-460.0,0.00021643,2]
[372480118,1752659456368,-460.0,0.00021643,2]
[372480119,1752659456377,-325.13529353,0.00021661,2]
[372480120,1752659456386,-360.0,0.00021674,2]
[372480121,1752659456396,-151.0,0.000217,3]
[372480122,1752659456405,-1190.55742259,0.00021797,6]
[372480123,1752659456413,-829.76,0.000219,2]
[372480124,1752659456423,-151.0,0.000219,2]
[372480125,1752659456432,-212.91498,0.000219,2]
[372480126,1752659456441,-151.0,0.000219,2]
[372480127,1752659456449,-212.91498,0.000219,2]
[372480128,1752659456458,-3000.0,0.00021912,2]
[372480129,1752659456467,-460.0,0.00021917,2]
[372480130,1752659456476,-544.59,0.00021917,2]
[372480131,1752659456486,-460.0,0.00021917,2]
[372480132,1752659456495,-460.0,0.00021917,2]
[372480133,1752659456505,-460.0,0.00021917,2]
[372480134,1752659456513,-460.0,0.00021917,2]
[372480135,1752659456523,-460.0,0.00021917,2]
[372480136,1752659456531,-518.16,0.00021917,2]
[372480137,1752659456540,-460.0,0.00021917,2]
[372480138,1752659456550,-460.0,0.00021917,2]
[372480139,1752659456559,-460.0,0.00021917,2]
[372480140,1752659456568,-460.0,0.00021917,2]
[372480141,1752659456577,-151.0,0.00021917,2]
[372480142,1752659456586,-581.31,0.00021917,2]
[372480143,1752659456595,-151.0,0.00021917,2]
[372480144,1752659456604,-460.0,0.00021917,2]
[372480145,1752659456613,-560.38,0.00021917,2]
[372480146,1752659456622,-460.0,0.00021917,2]
[372480147,1752659456631,-460.0,0.00021917,2]
[372480148,1752659456640,-598.99,0.00021917,2]
[372480149,1752659456649,-978.82,0.00021917,2]
[372480150,1752659456658,-460.0,0.00021917,2]
[372480151,1752659456667,-4969.25,0.00021917,2]
[372480152,1752659456676,-979.98,0.00021917,2]
[372480153,1752659456685,-460.0,0.00021917,2]
[372480154,1752659456751,-460.0,0.00021917,2]
[372480155,1752659456760,-460.0,0.00021917,2]
[372480156,1752659456770,-460.0,0.00021917,2]
[372480157,1752659456779,-460.0,0.00021917,2]
[372480158,1752659456788,-717.91,0.00021917,2]
[372480159,1752659456797,-2271.52,0.00021917,2]
[372480160,1752659456806,-460.0,0.00021917,2]
[372480161,1752659456815,-460.0,0.00021917,2]
[372480162,1752659456824,-460.0,0.00021917,2]
[372480163,1752659456833,-1800.67,0.00021917,2]
[372480164,1752659456842,-460.0,0.00021917,2]
[372480165,1752659456852,-572.72,0.00021917,2]
[372480166,1752659456861,-1504.03,0.00021917,2]
[372480167,1752659456870,-460.0,0.00021917,2]
[372480168,1752659456879,-644.49,0.00021917,2]
[372480169,1752659456888,-460.0,0.00021917,2]
[372480170,1752659456897,-584.06,0.00021917,2]
[372480171,1752659456906,-2254.45,0.00021917,2]
[372480172,1752659456915,-730.93,0.00021917,2]
[372480173,1752659456924,-460.0,0.00021917,2]
[372480174,1752659456933,-460.0,0.00021917,2]
[372480175,1752659456943,-460.0,0.00021917,2]
[372480176,1752659456952,-1614.71,0.00021917,2]
[372480177,1752659456961,-883.98,0.00021917,2]
[372480178,1752659456970,-460.0,0.00021917,2]
[372480179,1752659456979,-460.0,0.00021917,2]
[372480180,1752659456989,-460.0,0.00021917,2]
[372480181,1752659456998,-3587.49,0.00021917,2]
[372480182,1752659457008,-1846.33,0.00021917,2]
[372480183,1752659457017,-167.6037174,0.00021917,2]
[372480184,1752659457026,-460.0,0.00021917,2]
[372480185,1752659457035,-460.0,0.00021917,2]
[372480186,1752659457045,-460.0,0.00021917,2]
[372480187,1752659457054,-150.69,0.00021917,2]
[372480188,1752659457065,-603.1,0.00021917,2]
[372480189,1752659457074,-2534.47,0.00021917,2]
[372480190,1752659457083,-594.92,0.00021917,2]
[372480191,1752659457093,-1039.53,0.00021917,2]
[372480192,1752659457103,-460.0,0.00021917,2]
[372480193,1752659457112,-2969.86,0.00021917,2]
[372480194,1752659457121,-460.0,0.00021917,2]
[372480195,1752659457130,-460.0,0.00021917,2]
[372480196,1752659457141,-15187.3,0.00022,7]
[372480197,1752659457152,-160.0,0.00022,7]
[372480198,1752659457161,-1190.55742259,0.00022038,6]
[372480199,1752659457171,-151.0,0.000221,9]
[372480200,1752659457189,-22480.46,0.000221,2]
[372480201,1752659457209,-268.78754249,0.00022191,2]
[372480202,1752659457228,-544.59,0.00022191,2]
[372480203,1752659457249,-532.87573691,0.00022191,2]
[372480204,1752659457271,-460.0,0.00022191,2]
[372480205,1752659457288,-339.99,0.00022191,2]
[372480206,1752659457308,-460.0,0.00022191,2]
[372480207,1752659457324,-460.0,0.00022191,2]
[372480208,1752659457341,-518.16,0.00022191,2]
[372480209,1752659457360,-460.0,0.00022191,2]
[372480210,1752659457382,-460.0,0.00022191,2]
[372480211,1752659457397,-276.89,0.00022191,2]
[372480212,1752659457415,-460.0,0.00022191,2]
[372480213,1752659457431,-581.31,0.00022191,2]
[372480214,1752659457447,-460.0,0.00022191,2]
[372480215,1752659457461,-560.38,0.00022191,2]
[372480216,1752659457476,-460.0,0.00022191,2]
[372480217,1752659457491,-460.0,0.00022191,2]
[372480218,1752659457506,-598.99,0.00022191,2]
[372480219,1752659457521,-978.82,0.00022191,2]
[372480220,1752659457536,-460.0,0.00022191,2]
[372480221,1752659457551,-4969.25,0.00022191,2]
[372480222,1752659457565,-979.98,0.00022191,2]
[372480223,1752659457579,-460.0,0.00022191,2]
[372480224,1752659457594,-460.0,0.00022191,2]
[372480225,1752659457609,-460.0,0.00022191,2]
[372480226,1752659457624,-460.0,0.00022191,2]
[372480227,1752659457638,-460.0,0.00022191,2]
[372480228,1752659457653,-717.91,0.00022191,2]
[372480229,1752659457667,-2271.52,0.00022191,2]
[372480230,1752659457682,-460.0,0.00022191,2]
[372480231,1752659457696,-460.0,0.00022191,2]
[372480232,1752659457711,-460.0,0.00022191,2]
[372480233,1752659457725,-1800.67,0.00022191,2]
[372480234,1752659457740,-460.0,0.00022191,2]
[372480235,1752659457755,-572.72,0.00022191,2]
[372480236,1752659457769,-1504.03,0.00022191,2]
[372480237,1752659457784,-460.0,0.00022191,2]
[372480238,1752659457799,-644.49,0.00022191,2]
[372480239,1752659457813,-460.0,0.00022191,2]
[372480240,1752659457828,-584.06,0.00022191,2]
[372480241,1752659457843,-2254.45,0.00022191,2]
[372480242,1752659457859,-730.93,0.00022191,2]
[372480243,1752659457872,-460.0,0.00022191,2]
[372480244,1752659457881,-460.0,0.00022191,2]
[372480245,1752659457892,-460.0,0.00022191,2]
[372480246,1752659458002,-1614.71,0.00022191,2]
[372480247,1752659458017,-883.98,0.00022191,2]
[372480248,1752659458027,-470.64156443,0.00022191,2]
[372480249,1752659458036,-460.0,0.00022191,2]
[372480250,1752659458046,-316.4811283,0.00022191,2]
[372480251,1752659458056,-3587.49,0.00022191,2]
[372480252,1752659458069,-1846.33,0.00022191,2]
[372480253,1752659458078,-460.0,0.00022191,2]
[372480254,1752659458088,-460.0,0.00022191,2]
[372480255,1752659458097,-460.0,0.00022191,2]
[372480256,1752659458107,-151.0,0.00022191,7]
[372480257,1752659458117,-603.1,0.00022191,2]
[372480258,1752659458126,-2534.47,0.00022191,2]
[372480259,1752659458135,-594.92,0.00022191,2]
[372480260,1752659458148,-1039.53,0.00022191,2]
[372480261,1752659458158,-460.0,0.00022191,2]
[372480262,1752659458168,-2969.86,0.00022191,2]
[372480263,1752659458177,-460.0,0.00022191,2]
[372480264,1752659458187,-460.0,0.00022222,2]
[372480265,1752659458197,-1190.55742259,0.00022279,6]
[372480266,1752659458207,-1122.59,0.000223,7]
[372480267,1752659458216,-2351.0,0.00022334,2]
[372480268,1752659458226,-151.0,0.000224,7]
[372480269,1752659458235,-151.0,0.000224,7]
[372480270,1752659458245,-1006.983459,0.000224,7]
[372480271,1752659458255,-1006.983459,0.000224,7]
[372480272,1752659458264,-277.710847,0.000224,7]
[372480273,1752659458274,-151.0,0.000224,7]
[372480274,1752659458284,-277.710847,0.000224,7]
[372480275,1752659458293,-180.336502,0.000224,7]
[372480276,1752659458303,-3417.874469,0.000224,7]
[372480277,1752659458313,-180.336502,0.000224,7]
[372480278,1752659458323,-3417.874469,0.000224,7]
[372480279,1752659458333,-587.0,0.00022427,2]
[372480280,1752659458343,-587.0,0.00022427,2]
[372480281,1752659458352,-1024.69984856,0.0002246,2]
[372480282,1752659458362,-544.59,0.00022465,2]
[372480283,1752659458372,-172.2,0.00022465,2]
[372480284,1752659458381,-460.0,0.00022465,2]
[372480285,1752659458392,-460.0,0.00022465,2]
[372480286,1752659458402,-151.0,0.00022465,7]
[372480287,1752659458411,-294.09542,0.00022465,7]
[372480288,1752659458421,-518.16,0.00022465,2]
[372480289,1752659458431,-151.0,0.00022465,7]
[372480290,1752659458440,-460.0,0.00022465,2]
[372480291,1752659458449,-332.731383,0.00022465,7]
[372480292,1752659458459,-332.731383,0.00022465,7]
[372480293,1752659458468,-151.0,0.00022465,7]
[372480294,1752659458477,-262.677823,0.00022465,7]
[372480295,1752659458487,-403.18,0.00022465,2]
[372480296,1752659458497,-151.0,0.00022465,7]
[372480297,1752659458507,-151.0,0.00022465,7]
[372480298,1752659458516,-460.0,0.00022465,2]
[372480299,1752659458525,-581.31,0.00022465,2]
[372480300,1752659458534,-560.38,0.00022465,2]
[372480301,1752659458544,-460.0,0.00022465,2]
[372480302,1752659458553,-460.0,0.00022465,2]
[372480303,1752659458563,-598.99,0.00022465,2]
[372480304,1752659458573,-978.82,0.00022465,2]
[372480305,1752659458583,-460.0,0.00022465,2]
[372480306,1752659458593,-4969.25,0.00022465,2]
[372480307,1752659458603,-187.836295,0.00022465,7]
[372480308,1752659458612,-187.836295,0.00022465,7]
[372480309,1752659458622,-979.98,0.00022465,2]
[372480310,1752659458631,-460.0,0.00022465,2]
[372480311,1752659458640,-460.0,0.00022465,2]
[372480312,1752659458650,-460.0,0.00022465,2]
[372480313,1752659458659,-460.0,0.00022465,2]
[372480314,1752659458669,-460.0,0.00022465,2]
[372480315,1752659458679,-717.91,0.00022465,2]
[372480316,1752659458688,-2271.52,0.00022465,2]
[372480317,1752659458698,-460.0,0.00022465,2]
[372480318,1752659458708,-460.0,0.00022465,2]
[372480319,1752659458718,-1800.67,0.00022465,2]
[372480320,1752659458729,-460.0,0.00022465,2]
[372480321,1752659458740,-572.72,0.00022465,2]
[372480322,1752659458752,-1504.03,0.00022465,2]
[372480323,1752659458761,-460.0,0.00022465,2]
[372480324,1752659458774,-644.49,0.00022465,2]
[372480325,1752659458784,-460.0,0.00022465,2]
[372480326,1752659458794,-584.06,0.00022465,2]
[372480327,1752659458804,-2254.45,0.00022465,2]
[372480328,1752659458814,-730.93,0.00022465,2]
[372480329,1752659458824,-460.0,0.00022465,2]
[372480330,1752659458833,-460.0,0.00022465,2]
[372480331,1752659458843,-460.0,0.00022465,2]
[372480332,1752659458853,-1614.71,0.00022465,2]
[372480333,1752659458862,-883.98,0.00022465,2]
[372480334,1752659458872,-460.0,0.00022465,2]
[372480335,1752659458881,-3587.49,0.00022465,2]
[372480336,1752659458892,-1846.33,0.00022465,2]
[372480337,1752659458902,-460.0,0.00022465,2]
[372480338,1752659458912,-460.0,0.00022465,2]
[372480339,1752659458922,-603.1,0.00022465,2]
[372480340,1752659458932,-2534.47,0.00022465,2]
[372480341,1752659458942,-594.92,0.00022465,2]
[372480342,1752659458951,-1039.53,0.00022465,2]
[372480343,1752659458961,-460.0,0.00022465,2]
[372480344,1752659458971,-2969.86,0.00022465,2]
[372480345,1752659458980,-460.0,0.00022465,2]
[372480346,1752659458990,-1190.55742259,0.00022521,7]
[372480347,1752659459002,-151.0,0.000226,7]
[372480348,1752659459012,-2351.0,0.00022646,2]
[372480349,1752659459023,-325.13529353,0.00022649,2]
[372480350,1752659459032,-3252.66868497,0.00022694,2]
[372480351,1752659459042,-544.59,0.00022739,2]
[372480352,1752659459052,-460.0,0.00022739,2]
[372480353,1752659459063,-460.0,0.00022739,2]
[372480354,1752659459074,-518.16,0.00022739,2]
[372480355,1752659459084,-460.0,0.00022739,2]
[372480356,1752659459094,-581.31,0.00022739,2]
[372480357,1752659459104,-560.38,0.00022739,2]
[372480358,1752659459115,-460.0,0.00022739,2]
[372480359,1752659459126,-603.7388468,0.00022739,2]
[372480360,1752659459136,-598.99,0.00022739,2]
[372480361,1752659459147,-978.82,0.00022739,2]
[372480362,1752659459156,-460.0,0.00022739,2]
[372480363,1752659459166,-4969.25,0.00022739,2]
[372480364,1752659459175,-979.98,0.00022739,2]
[372480365,1752659459187,-460.0,0.00022739,2]
[372480366,1752659459197,-442.4,0.00022739,2]
[372480367,1752659459207,-460.0,0.00022739,2]
[372480368,1752659459217,-460.0,0.00022739,2]
[372480369,1752659459227,-460.0,0.00022739,2]
[372480370,1752659459237,-717.91,0.00022739,2]
[372480371,1752659459246,-2271.52,0.00022739,2]
[372480372,1752659459256,-460.0,0.00022739,2]
[372480373,1752659459266,-460.0,0.00022739,2]
[372480374,1752659459275,-1800.67,0.00022739,2]
[372480375,1752659459285,-460.0,0.00022739,2]
[372480376,1752659459295,-572.72,0.00022739,2]
[372480377,1752659459304,-1504.03,0.00022739,2]
[372480378,1752659459313,-460.0,0.00022739,2]
[372480379,1752659459324,-644.49,0.00022739,2]
[372480380,1752659459334,-460.0,0.00022739,2]
[372480381,1752659459344,-584.06,0.00022739,2]
[372480382,1752659459354,-2254.45,0.00022739,2]
[372480383,1752659459363,-730.93,0.00022739,2]
[372480384,1752659459373,-460.0,0.00022739,2]
[372480385,1752659459383,-460.0,0.00022739,2]
[372480386,1752659459393,-460.0,0.00022739,2]
[372480387,1752659459402,-1614.71,0.00022739,2]
[372480388,1752659459412,-883.98,0.00022739,2]
[372480389,1752659459421,-460.0,0.00022739,2]
[372480390,1752659459430,-3587.49,0.00022739,2]
[372480391,1752659459440,-1846.33,0.00022739,2]
[372480392,1752659459449,-233.11584936,0.00022739,2]
[372480393,1752659459459,-603.1,0.00022739,2]
[372480394,1752659459469,-2534.47,0.00022739,2]
[372480395,1752659459479,-594.92,0.00022739,2]
[372480396,1752659459488,-1039.53,0.00022739,2]
[372480397,1752659459498,-460.0,0.00022739,2]
[372480398,1752659459508,-2969.86,0.00022739,2]
[372480399,1752659459517,-460.0,0.00022739,2]
[372480400,1752659459527,-151.0,0.0002274,7]
[372480401,1752659459536,-1190.55742259,0.00022762,7]
[372480402,1752659459546,-560.0,0.0002277,2]
[372480403,1752659459556,-3252.66868497,0.00022892,2]
[372480404,1752659459627,-151.0,0.00023,10]
[372480405,1752659459646,-520.85416667,0.00023,3]
[372480406,1752659459656,-160.0,0.00023,3]
[372480407,1752659459666,-12605.49131908,0.00023,3]
[372480408,1752659459677,-214.40824756,0.00023,3]
[372480409,1752659459688,-230.8109288,0.00023,3]
[372480410,1752659459699,-1190.55742259,0.00023003,8]
[372480411,1752659459709,-544.59,0.00023013,2]
[372480412,1752659459719,-460.0,0.00023013,2]
[372480413,1752659459728,-460.0,0.00023013,2]
[372480414,1752659459737,-151.0,0.00023013,7]
[372480415,1752659459747,-284.42664383,0.00023013,7]
[372480416,1752659459757,-1028.741012,0.00023013,7]
[372480417,1752659459768,-1028.741012,0.00023013,7]
[372480418,1752659459777,-518.16,0.00023013,2]
[372480419,1752659459787,-460.0,0.00023013,2]
[372480420,1752659459798,-581.31,0.00023013,2]
[372480421,1752659459807,-560.38,0.00023013,2]
[372480422,1752659459819,-460.0,0.00023013,2]
[372480423,1752659459830,-598.99,0.00023013,2]
[372480424,1752659459840,-978.82,0.00023013,2]
[372480425,1752659459851,-175.89,0.00023013,2]
[372480426,1752659459861,-3499.98159365,0.00023013,2]
[372480427,1752659460002,-1469.26840635,0.00023013,2]
[372480428,1752659460012,-979.98,0.00023013,2]
[372480429,1752659460022,-460.0,0.00023013,2]
[372480430,1752659460031,-460.0,0.00023013,2]
[372480431,1752659460040,-507.55212522,0.00023013,2]
[372480432,1752659460050,-515.27,0.00023013,2]
[372480433,1752659460060,-717.91,0.00023013,2]
[372480434,1752659460073,-2271.52,0.00023013,2]
[372480435,1752659460083,-460.0,0.00023013,2]
[372480436,1752659460092,-460.0,0.00023013,2]
[372480437,1752659460102,-1800.67,0.00023013,2]
[372480438,1752659460114,-572.72,0.00023013,2]
[372480439,1752659460123,-460.0,0.00023013,2]
[372480440,1752659460132,-1504.03,0.00023013,2]
[372480441,1752659460143,-460.0,0.00023013,2]
[372480442,1752659460153,-644.49,0.00023013,2]
[372480443,1752659460163,-460.0,0.00023013,2]
[372480444,1752659460172,-584.06,0.00023013,2]
[372480445,1752659460182,-2254.45,0.00023013,2]
[372480446,1752659460191,-730.93,0.00023013,2]
[372480447,1752659460200,-460.0,0.00023013,2]
[372480448,1752659460210,-460.0,0.00023013,2]
[372480449,1752659460221,-460.0,0.00023013,2]
[372480450,1752659460231,-1614.71,0.00023013,2]
[372480451,1752659460240,-883.98,0.00023013,2]
[372480452,1752659460250,-460.0,0.00023013,2]
[372480453,1752659460260,-3587.49,0.00023013,2]
[372480454,1752659460270,-1846.33,0.00023013,2]
[372480455,1752659460279,-603.1,0.00023013,2]
[372480456,1752659460290,-2534.47,0.00023013,2]
[372480457,1752659460300,-594.92,0.00023013,2]
[372480458,1752659460310,-163.3061383,0.00023013,2]
[372480459,1752659460320,-1039.53,0.00023013,2]
[372480460,1752659460330,-2969.86,0.00023013,2]
[372480461,1752659460340,-460.0,0.00023013,2]
[372480462,1752659460350,-220.8,0.00023095,2]
[372480463,1752659460360,-15187.3,0.000231,7]
[372480464,1752659460369,-897.24091155,0.00023232,2]
[372480465,1752659460382,-2355.42777342,0.00023232,2]
[372480466,1752659460392,-1190.55742259,0.00023245,8]
[372480467,1752659460402,-544.59,0.00023287,2]
[372480468,1752659460412,-460.0,0.00023287,2]
[372480469,1752659460421,-460.0,0.00023287,2]
[372480470,1752659460430,-518.16,0.00023287,2]
[372480471,1752659460440,-460.0,0.00023287,2]
[372480472,1752659460450,-581.31,0.00023287,2]
[372480473,1752659460459,-560.38,0.00023287,2]
[372480474,1752659460469,-460.0,0.00023287,2]
[372480475,1752659460478,-311.76077464,0.00023287,2]
[372480476,1752659460519,-178.09282519,0.00019178,2]
[372480477,1752659460532,-281.90717481,0.00019178,2]
[372480478,1752659460542,-287.22922536,0.00023287,2]
[372480479,1752659460551,-978.82,0.00023287,2]
[372480480,1752659460561,-87.32013176,0.00023287,2]
[372480481,1752659460572,-3072.59983121,0.00023287,2]
[372480482,1752659460583,-715.6763441,0.00023287,2]
[372480483,1752659460595,-1093.65369293,0.00023287,2]
[372480484,1752659460604,-979.98,0.00023287,2]
[372480485,1752659460613,-517.84361329,0.00023287,2]
[372480486,1752659460623,-597.94,0.00023287,2]
[372480487,1752659460632,-717.91,0.00023287,2]
[372480488,1752659460642,-2271.52,0.00023287,2]
[372480489,1752659460651,-460.0,0.00023287,2]
[372480490,1752659460661,-458.03268078,0.00023287,2]
[372480491,1752659460670,-1800.67,0.00023287,2]
[372480492,1752659460679,-572.72,0.00023287,2]
[372480493,1752659460689,-460.0,0.00023287,2]
[372480494,1752659460698,-1504.03,0.00023287,2]
[372480495,1752659460708,-513.91647888,0.00023287,2]
[372480496,1752659460718,-644.49,0.00023287,2]
[372480497,1752659460727,-460.0,0.00023287,2]
[372480498,1752659460737,-584.06,0.00023287,2]
[372480499,1752659460747,-2254.45,0.00023287,2]
[372480500,1752659460756,-730.93,0.00023287,2]
[372480501,1752659460766,-460.0,0.00023287,2]
[372480502,1752659460775,-460.0,0.00023287,2]
[372480503,1752659460785,-460.0,0.00023287,2]
[372480504,1752659460795,-1614.71,0.00023287,2]
[372480505,1752659460805,-883.98,0.00023287,2]
[372480506,1752659460814,-460.0,0.00023287,2]
[372480507,1752659460823,-1846.33,0.00023287,2]
[372480508,1752659460833,-3587.49,0.00023287,2]
[372480509,1752659460842,-603.1,0.00023287,2]
[372480510,1752659460852,-2534.47,0.00023287,2]
[372480511,1752659460862,-594.92,0.00023287,2]
[372480512,1752659460873,-1039.53,0.00023287,2]
[372480513,1752659460883,-2969.86,0.00023287,2]
[372480514,1752659460893,-460.0,0.00023287,2]
[372480515,1752659460903,-800.0,0.00023318,2]
[372480516,1752659460912,-324.4635341,0.00023356,2]
[372480517,1752659460924,-175.5364659,0.00023356,2]
[372480518,1752659460934,-128.7249342,0.00023433,2]
[372480519,1752659460945,-3123.94375077,0.00023433,2]
[372480520,1752659461038,-4216.2629055,0.00023461,2]
[372480521,1752659461050,-17425.36903415,0.00023461,2]
[372480522,1752659461061,-1190.55742259,0.00023486,9]
[372480523,1752659461077,-829.76,0.000235,7]
[372480524,1752659461088,-8748.498426,0.000235,2]
[372480525,1752659461100,-6491.92331311,0.000235,2]
[372480526,1752659461112,-770.67,0.000235,2]
[372480527,1752659462389,-460.0,0.00019178,2]
[372480528,1752659462400,-460.0,0.00019178,2]
[372480529,1752659462410,-460.0,0.00019178,2]
[372480530,1752659462419,-460.0,0.00019178,2]
[372480531,1752659462429,-460.0,0.00019452,2]
[372480532,1752659462439,-460.0,0.00019452,2]
[372480533,1752659462449,-460.0,0.00019452,2]
[372480534,1752659462459,-427.17533548,0.00019726,2]